Cogmind - Beta 9 @@@ ROGUE MODE // 2019.10.26 @ 00:19:52 Player: Qupu Result: Destroyed by G-47 Trooper with Particle Gun Performance ------------- Evolutions (3) 1500 Regions Visited (8) 1600 Robots Destroyed (0) 0 Value Destroyed (0) 0 Prototype IDs (0) 0 Alien Tech Used (0) 0 Bonus (928) 928 TOTAL SCORE: 4028 Bonus ------- Pacifist 928 Cogmind --------- Core Integrity 0/700 Matter 253/300 Energy 80/100 System Corruption 3% Temperature Cool (9) Location -7/Factory Parts ------- Power (2) Propulsion (4) Utility (5) Enhanced Optical Array Improved Terrain Scan Processor Transmission Jammer Weapon (2) Inventory (4) Deuterium Engine Small Storage Unit Improved ECM Suite Peak State ------------ Power Deuterium Engine Propulsion Light Treads Armored Treads Improved Aluminum Leg Gravmag System Utility Small Storage Unit Weight Redist. System Enhanced Optical Array Advanced Terrain Scanner Improved Terrain Scan Processor Weapon (None) Inventory Improved Aluminum Leg Wheel Flight Unit Improved ECM Suite Hacking Suite [Rating: 27] Favorites ----------- Power Light Ion Engine Engine Light Ion Engine Propulsion Light Treads Treads Light Treads Leg Improved Aluminum Leg Wheel Wheel Hover Unit Gravmag System Flight Unit Flight Unit Utility Small Storage Unit Device Weight Redist. System Storage Small Storage Unit Processor Improved Terrain Scan Processor Hackware Hacking Suite Weapon Datajack Energy Gun Small Laser Ballistic Gun Light Assault Rifle Ballistic Cannon Improved Light Cannon Special Melee Weapon Datajack Build | -11 -10 -10 -9 -9 -9 -8 -8 -7 ------- Run | Scr Mat Min Mat Min Exi Min Mat Fac Slots Evolved 6 | . . . 2 . . . 2 2 Power 1 | . . . . . . . . 1 Propulsion 2 | . . . . . . . 1 1 Utility 3 | . . . 2 . . . 1 . Weapon . | . . . . . . . . . Parts Attached 35 | 2 3 . 7 1 . . 6 16 Power 2 | . . . 1 . . . . 1 Engine 2 | . . . 1 . . . . 1 Core . | . . . . . . . . . Reactor . | . . . . . . . . . Propulsion 19 | 2 1 . 3 1 . . 3 9 Treads 6 | 2 . . . 1 . . 2 1 Leg 3 | . . . . . . . . 3 Wheel 2 | . . . 1 . . . . 1 Hover 2 | . . . . . . . . 2 Flight 6 | . 1 . 2 . . . 1 2 Utility 11 | . . . 2 . . . 3 6 Device 7 | . . . 1 . . . 2 4 Storage 1 | . . . 1 . . . . . Processor 2 | . . . . . . . 1 1 Hackware 1 | . . . . . . . . 1 Protection . | . . . . . . . . . Artifact . | . . . . . . . . . Weapon 3 | . 2 . 1 . . . . . Energy Gun . | . . . . . . . . . Energy Cannon . | . . . . . . . . . Ballistic Gun 1 | . 1 . . . . . . . Ballistic Cannon 1 | . . . 1 . . . . . Launcher . | . . . . . . . . . Special Weapon . | . . . . . . . . . Impact Weapon . | . . . . . . . . . Slashing Weapon . | . . . . . . . . . Piercing Weapon . | . . . . . . . . . Special Melee Weapon 1 | . 1 . . . . . . . Unidentified Prototypes . | . . . . . . . . . Parts Lost 17 | . . . 2 . . . 4 11 Power 2 | . . . 1 . . . 1 . Propulsion 9 | . . . 1 . . . 2 6 Utility 5 | . . . . . . . . 5 Weapon 1 | . . . . . . . 1 . Highest Loss Streak 6 | . . . 2 . . . 4 6 Average Slot Usage (%) 68 | . 55 57 67 66 66 66 87 58 Engine 8 | . 14 14 11 11 11 11 8 2 Treads 9 | . 14 14 1 11 11 11 11 9 Leg 1 | . . . . . . . . 5 Flight 11 | . 13 14 20 11 11 11 15 . Device 13 | . . . 7 11 11 11 26 12 Storage 6 | . . . 9 11 11 11 9 4 Processor 6 | . . . . . . . 8 14 Ballistic Gun 1 | . 9 . . . . . . . Special Melee Weapon 6 | . 2 14 11 11 11 11 8 . Naked Turns . | . . . . . . . . . Heaviest Build 14 | 3 4 4 12 8 8 8 11 14 Greatest Support 17 | 3 4 4 15 10 10 10 15 17 Greatest Overweight (x) 1 | . . . . . . . 1 1 Average Overweight (x) . | . . . . . . . . . Largest Inventory Capacity 6 | 6 4 4 6 6 6 6 6 6 Average Capacity 5 | 5 4 4 5 6 6 6 6 5 Most Carried 6 | 6 4 4 6 5 6 6 6 6 Average Carried 5 | 5 3 4 5 5 5 6 5 4 Final Capacity 4 | . . . . . . . . 4 Final Carried 3 | . . . . . . . . 3 Class Distribution -------------------- 82% | Mutant 17% | Scout Dominant Class ---------------- Mutant | -10/Materials Mutant | -10/Mines Mutant | -9/Materials Mutant | -9/Mines Mutant | -9/Exiles Mutant | -8/Mines Mutant | -8/Materials Scout | -7/Factory Resources | -11 -10 -10 -9 -9 -9 -8 -8 -7 ----------- Run | Scr Mat Min Mat Min Exi Min Mat Fac Matter Collected 398 | 220 . . 22 . . . . 156 Remotely . | . . . . . . . . . Salvage Created . | . . . . . . . . . Parts . | . . . . . . . . . Haulers Intercepted . | . . . . . . . . . Recyclers Shooed . | . . . . . . . . . Parts Field Recycled . | . . . . . . . . . Retrieved Matter . | . . . . . . . . . Parts Self-Destructed . | . . . . . . . . . Prevented . | . . . . . . . . . Kills | -11 -10 -10 -9 -9 -9 -8 -8 -7 ------- Run | Scr Mat Min Mat Min Exi Min Mat Fac Combat Hostiles Destroyed . | . . . . . . . . . Classes Destroyed . | . . . . . . . . . Best Kill Streak . | . . . . . . . . . Combat Bots Only . | . . . . . . . . . Max Kills in Single Turn . | . . . . . . . . . Gunslinging . | . . . . . . . . . Exploded . | . . . . . . . . . Melee . | . . . . . . . . . Uniques/NPCs Destroyed . | . . . . . . . . . Combat | -11 -10 -10 -9 -9 -9 -8 -8 -7 -------- Run | Scr Mat Min Mat Min Exi Min Mat Fac Damage Taken 2524 | . 10 . 435 . . 51 539 1489 Core 975 | . . . 127 . . 18 128 702 Absorbed by Shields . | . . . . . . . . . Core Remaining (%) 84 | 100 . 100 . . . 63 76 . Volleys Fired . | . . . . . . . . . Largest . | . . . . . . . . . Hottest . | . . . . . . . . . Shots Fired . | . . . . . . . . . Gun . | . . . . . . . . . Cannon . | . . . . . . . . . Launcher . | . . . . . . . . . Special . | . . . . . . . . . Kinetic . | . . . . . . . . . Thermal . | . . . . . . . . . Explosive . | . . . . . . . . . Electromagnetic . | . . . . . . . . . Robot Hit Streak . | . . . . . . . . . Robot Miss Streak . | . . . . . . . . . Penetration Max . | . . . . . . . . . Secondary Targets . | . . . . . . . . . Shots Hit Robots 4 | . . . 4 . . . . . Core Hits 3 | . . . . . . . . 3 Critical Hits . | . . . . . . . . . Critical Kills . | . . . . . . . . . Critical Parts Destroyed . | . . . . . . . . . Melee Attacks 4 | . . . 4 . . . . . Impact . | . . . . . . . . . Slashing . | . . . . . . . . . Piercing . | . . . . . . . . . Sneak Attacks 3 | . . . 3 . . . . . Combat Hostiles . | . . . . . . . . . Follow-up Attacks . | . . . . . . . . . Damage Inflicted 21 | . . . . . . . . 21 Guns . | . . . . . . . . . Cannons . | . . . . . . . . . Explosions . | . . . . . . . . . Melee . | . . . . . . . . . Ramming 21 | . . . . . . . . 21 Kinetic . | . . . . . . . . . Thermal . | . . . . . . . . . Explosive . | . . . . . . . . . Electromagnetic . | . . . . . . . . . Impact . | . . . . . . . . . Slashing . | . . . . . . . . . Piercing . | . . . . . . . . . Highest Corruption 3 | . . . . . . . . 3 Average Corruption 2 | . . . . . . . . 2 Corruption Purged . | . . . . . . . . . Effects 2 | . . . . . . . . 2 Data Loss (minor) 2 | . . . . . . . . 2 Overload Shots . | . . . . . . . . . Overflow Damage . | . . . . . . . . . Projectiles . | . . . . . . . . . Explosions . | . . . . . . . . . Melee . | . . . . . . . . . Knockbacks . | . . . . . . . . . Impact . | . . . . . . . . . Kinetic . | . . . . . . . . . Secondary . | . . . . . . . . . Self-Inflicted Damage 10 | . . . . . . . . 10 Shots . | . . . . . . . . . Rammed 6 | . . . . . . . . 6 Targets Rammed 6 | . . . . . . . . 6 Kicked . | . . . . . . . . . Crushed . | . . . . . . . . . Highest Temperature . | . . . . . . . . . Average Temperature . | . . . . . . . . . Received Heat Transfer 354 | . . . 66 . . 9 189 90 Siege Activations . | . . . . . . . . . Robots Corrupted . | . . . . . . . . . Combat Hostiles . | . . . . . . . . . Parts Fried . | . . . . . . . . . Impact Corruptions . | . . . . . . . . . Robots Melted . | . . . . . . . . . Combat Hostiles . | . . . . . . . . . Parts Melted . | . . . . . . . . . Heat Transferred . | . . . . . . . . . Parts Sabotaged . | . . . . . . . . . Parts Stolen . | . . . . . . . . . Parts Stripped . | . . . . . . . . . Power Chain Reactions . | . . . . . . . . . Missiles Intercepted . | . . . . . . . . . Alert | -11 -10 -10 -9 -9 -9 -8 -8 -7 ------- Run | Scr Mat Min Mat Min Exi Min Mat Fac Peak Influence 124 | . 15 20 124 40 . . 15 70 Average Influence 15 | . 11 15 57 40 . . . 10 Maximum Alert Level . | . . . . . . . . . Low Security (%) 100 | . . . . . . . . . Level 1 . | . . . . . . . . . Level 2 . | . . . . . . . . . Level 3 . | . . . . . . . . . Level 4 . | . . . . . . . . . Level 5 . | . . . . . . . . . High Security . | . . . . . . . . . Max Security . | . . . . . . . . . Squads Dispatched 7 | . 2 . . . . . . 5 Investigation 1 | . 1 . . . . . . . Extermination 1 | . . . . . . . . 1 Reinforcement 5 | . 1 . . . . . . 4 Assault . | . . . . . . . . . Garrison . | . . . . . . . . . Intercept . | . . . . . . . . . Construction Impeded . | . . . . . . . . . Haulers Reinforced . | . . . . . . . . . Stealth | -11 -10 -10 -9 -9 -9 -8 -8 -7 --------- Run | Scr Mat Min Mat Min Exi Min Mat Fac Distress Signals 6 | . 1 . 3 . . . 1 1 Communications Jammed . | . . . . . . . . . Distress Signals . | . . . . . . . . . Times Spotted 74 | . 4 1 16 . . 3 16 34 Peak Tracking Total 19 | . 5 1 15 . . 3 19 14 Tactical Retreats 10 | . 1 1 1 . . . 1 6 Traps | -11 -10 -10 -9 -9 -9 -8 -8 -7 ------- Run | Scr Mat Min Mat Min Exi Min Mat Fac Traps Triggered 2 | . 1 . . . . . . 1 Indirectly . | . . . . . . . . . Trap Hack Attempts . | . . . . . . . . . Triggered . | . . . . . . . . . Disarmed . | . . . . . . . . . Reprogrammed . | . . . . . . . . . Reused . | . . . . . . . . . Traps Extracted . | . . . . . . . . . Installed . | . . . . . . . . . Triggered . | . . . . . . . . . Machines | -11 -10 -10 -9 -9 -9 -8 -8 -7 ---------- Run | Scr Mat Min Mat Min Exi Min Mat Fac Machines Disabled . | . . . . . . . . . Max in Single Turn . | . . . . . . . . . Machines Sabotaged . | . . . . . . . . . Garrisons Compromised . | . . . . . . . . . Overloaded Fab Kills . | . . . . . . . . . Fab Network Shutdowns . | . . . . . . . . . Hacking | -11 -10 -10 -9 -9 -9 -8 -8 -7 --------- Run | Scr Mat Min Mat Min Exi Min Mat Fac Machines Accessed 8 | . 2 . 5 . . . 1 . Terminals 5 | . 1 . 3 . . . 1 . Fabricators . | . . . . . . . . . Repair Stations 1 | . . . 1 . . . . . Recycling Units 1 | . 1 . . . . . . . Scanalyzers 1 | . . . 1 . . . . . Garrison Access . | . . . . . . . . . Total Hacks 22 | . 2 . 15 . . . 5 . Successful 13 | . 1 . 11 . . . 1 . Failed 9 | . 1 . 4 . . . 4 . Catastrophic 1 | . 1 . . . . . . . Database Lockouts . | . . . . . . . . . Manual 4 | . . . . . . . 4 . Terminals 16 | . 1 . 10 . . . 5 . Fabricators . | . . . . . . . . . Repair Stations 1 | . . . 1 . . . . . Recycling Units 1 | . 1 . . . . . . . Scanalyzers 4 | . . . 4 . . . . . Garrison Access . | . . . . . . . . . Terminal Hacks 7 | . . . 6 . . . 1 . Emergency Access Points 1 | . . . 1 . . . . . Terminal Index 1 | . . . 1 . . . . . Alert Level 1 | . . . . . . . 1 . Unreport Threat 1 | . . . 1 . . . . . Recall Reinforcements 1 | . . . 1 . . . . . Zone Layout 2 | . . . 2 . . . . . Fabricator Hacks . | . . . . . . . . . Repair Station Hacks 1 | . . . 1 . . . . . Scan Component 1 | . . . 1 . . . . . Recycling Unit Hacks 1 | . 1 . . . . . . . Report Inventory 1 | . 1 . . . . . . . Scanalyzer 4 | . . . 4 . . . . . Insert Component 2 | . . . 2 . . . . . Analyze 2 | . . . 2 . . . . . Garrison Access Hacks . | . . . . . . . . . Unauthorized Hacks . | . . . . . . . . . Terminals . | . . . . . . . . . Fabricators . | . . . . . . . . . Repair Stations . | . . . . . . . . . Recycling Units . | . . . . . . . . . Scanalyzers . | . . . . . . . . . Garrison Access . | . . . . . . . . . Data Cores Recovered . | . . . . . . . . . Used . | . . . . . . . . . Hacking Detections 6 | . 2 . 3 . . . 1 . Full Trace Events . | . . . . . . . . . Feedback Events . | . . . . . . . . . Feedback Blocked . | . . . . . . . . . Robot Schematics Acquired . | . . . . . . . . . Robots Built . | . . . . . . . . . Matter . | . . . . . . . . . Time . | . . . . . . . . . Total Robot Build Rating . | . . . . . . . . . Part Schematics Acquired 2 | . . . 2 . . . . . Parts Built . | . . . . . . . . . Matter . | . . . . . . . . . Time . | . . . . . . . . . Total Part Build Rating . | . . . . . . . . . Parts Repaired . | . . . . . . . . . Time . | . . . . . . . . . Parts Recycled . | . . . . . . . . . Recycled Matter . | . . . . . . . . . Retrieved Matter . | . . . . . . . . . Retrieved Components . | . . . . . . . . . Parts Scanalyzed 2 | . . . 2 . . . . . Part Schematics Acquired 2 | . . . 2 . . . . . Parts Damaged . | . . . . . . . . . Bothacking | -11 -10 -10 -9 -9 -9 -8 -8 -7 ------------ Run | Scr Mat Min Mat Min Exi Min Mat Fac Used RIF Installer . | . . . . . . . . . Robots Hacked 2 | . . . 2 . . . . . Non-combat 1 | . . . 1 . . . . . Combat 1 | . . . 1 . . . . . Robot Hacks Applied 3 | . . . 3 . . . . . parse_system 2 | . . . 2 . . . . . no_distress 1 | . . . 1 . . . . . Relay Couplers Released . | . . . . . . . . . Robots Rewired . | . . . . . . . . . Allies Hacked . | . . . . . . . . . Hacks Repelled . | . . . . . . . . . Allies | -11 -10 -10 -9 -9 -9 -8 -8 -7 -------- Run | Scr Mat Min Mat Min Exi Min Mat Fac Total Allies . | . . . . . . . . . Largest Group . | . . . . . . . . . Highest-Rated Group . | . . . . . . . . . Highest-Rated Ally . | . . . . . . . . . Total Orders . | . . . . . . . . . Ally Attacks . | . . . . . . . . . Total Damage . | . . . . . . . . . Kills . | . . . . . . . . . Allies Corrupted . | . . . . . . . . . Allies Melted . | . . . . . . . . . Intel | -11 -10 -10 -9 -9 -9 -8 -8 -7 ------- Run | Scr Mat Min Mat Min Exi Min Mat Fac Robot Analysis Total . | . . . . . . . . . Derelict Logs Recovered 1 | . . 1 . . . . . . Drone Launches . | . . . . . . . . . Drone Recoveries . | . . . . . . . . . Exploration | -11 -10 -10 -9 -9 -9 -8 -8 -7 ------------- Run | Scr Mat Min Mat Min Exi Min Mat Fac Turns Passed 1443 | 8 162 128 194 38 63 46 433 371 Spaces Moved 1670 | 7 259 213 393 63 103 76 133 423 Core 272 | 7 11 . . . . . 14 240 Treads . | . . . . . . . . . Legs . | . . . . . . . . . Wheels . | . . . . . . . . . Hover 164 | . . . . . . . . 164 Flight 1234 | . 248 213 393 63 103 76 119 19 Fastest Speed 37 | 50 50 60 37 45 60 60 50 50 Average Speed 59 | 50 59 60 38 58 60 60 75 75 Slowest Speed 170 | 50 60 60 60 60 60 60 100 170 Overloaded Moves . | . . . . . . . . . Propulsion Burnouts . | . . . . . . . . . Robots Hopped 28 | . 1 2 14 . . 4 6 1 Cave-ins Triggered . | . . . . . . . . . Exploration Rate (%) 25 | 2 39 54 31 18 22 27 17 19 Regions Visited 8 Branch Regions 4 Pre-discovered Areas . | . . . . . . . . . Known Exits Taken 1 | . . . 1 . . . . . Unknown Exits Taken 7 | 1 1 1 . 1 1 1 1 . Scrap Searched 1 | . . . . . . 1 . . Spaces Dug . | . . . . . . . . . Terrain Destroyed . | . . . . . . . . . Melee . | . . . . . . . . . Projectile . | . . . . . . . . . AOE . | . . . . . . . . . Actions | -11 -10 -10 -9 -9 -9 -8 -8 -7 --------- Run | Scr Mat Min Mat Min Exi Min Mat Fac Total 2070 | 11 265 210 417 63 103 71 458 472 Wait 360 | . . . 20 . . . 322 18 Move 1610 | 6 256 208 365 62 102 68 122 421 Hop 24 | . 1 2 13 . . 3 4 1 Pick Up 16 | . 2 . 4 . 1 . 4 5 Fast Attach 10 | . 2 . 5 . . . . 3 Attach 18 | . 1 . 2 . . . 4 11 Detach 4 | . . . . . . . . 4 Swap 7 | 2 . . . 1 . . 2 2 Drop 11 | 3 3 . 4 . . . . 1 Fire . | . . . . . . . . . Melee 4 | . . . 4 . . . . . Ram 6 | . . . . . . . . 6 Kick . | . . . . . . . . . Crush . | . . . . . . . . . Escape Stasis . | . . . . . . . . . Rewire . | . . . . . . . . . Trap . | . . . . . . . . . Miscellaneous . | . . . . . . . . . Route ------- -11/Scrapyard -10/Materials -10/Mines -9/Materials -9/Mines -9/Exiles -8/Mines -8/Materials -7/Factory History --------- Turn | Location | Event 6 | -11/Scrapyard | Discovered new exit (range 2) 9 | -11/Scrapyard | Entered Materials 120 | -10/Materials | Discovered new exit (range 6) 171 | -10/Materials | Entered Mines 172 | -10/Mines | Met a Derelict bent on vengeance 245 | -10/Mines | Discovered new exit (range 7) 245 | -10/Mines | Learned location of 1 exit from Materials 299 | -10/Mines | Entered Materials 299 | -9/Materials | Evolved 2 slots: Utility x2 300 | -9/Materials | Identified exit to Mines 303 | -9/Materials | Build established: Mutant 493 | -9/Materials | Entered Mines 528 | -9/Mines | Deemed a non-threat by the Exiles lab entrance 529 | -9/Mines | Discovered new exit (range 5) 531 | -9/Mines | Entered Exiles 543 | -9/Exiles | Discovered new exit (range 15) 551 | -9/Exiles | Met 8R-AWN 559 | -9/Exiles | Met EX-HEX 594 | -9/Exiles | Entered Mines 636 | -8/Mines | Discovered new exit (range 6) 640 | -8/Mines | Entered Materials 640 | -8/Materials | Evolved 2 slots: Propulsion x1, Utility x1 1069 | -8/Materials | Discovered new exit (range 9) 1073 | -8/Materials | Entered Factory 1073 | -7/Factory | Evolved 2 slots: Power x1, Propulsion x1 1101 | -7/Factory | Lost 4 parts (1p2n1w) 1350 | -7/Factory | Lost 6 parts (5n1u) 1378 | -7/Factory | Core integrity fell below 50% 1408 | -7/Factory | Core integrity fell below 20% 1444 | -7/Factory | Destroyed by G-47 Trooper with Particle Gun Last Messages --------------- 01378_ Slammed into B-48 Gladiator. 01379_ Imp. Heat Sink destroyed. 01379_ Slammed into B-48 Gladiator. 01380_ Adv. Terrain Scanner destroyed. 01380_ System corrupted by crushing effect (+1). 01390_ System corrupted: Component data lost. 01402_ Acquired Adv. Sensor Array. 01407_ Hacking Suite destroyed. 01429_ P-60 Hacker resets S-27 Virus, system corruption cleaned. 01430_ System corrupted: Component data lost. 01430_ O-24 Administrator: "IFF HANDSHAKE FAILED. SECURING TERMINAL." 01433_ K-01 Serf cleans the Terminal. 01434_ O-24 Administrator uses terminal to summon reinforcements. 01434_ ALERT: Hostiles spotted, dispatching reinforcements to Terminal F001. 01434_ O-24 Administrator locks terminal. 01436_ Adv. Sensor Array destroyed. 01437_ K-01 Serf cleans the Terminal. 01442_ ALERT: Hostiles spotted, dispatching reinforcements to Terminal F006. Map ----- +----------------------------------------------------+ | + #????????????????????????????????????????? | | # #????????????????????????????????????????? | | #! #????????????????????????????????????????? | | #?######????????????????????????????????????????? | | #???????????????????????????????????????????????? | | #???????????????????????????????????????????????? | | #???????????????????????????????????????????????? | | #???????????????????????????????????????????????? | | #???????????????????????????????????????????????? | | #???????????????????????????????????????????????? | | #???????????????????????????????????????????????? | | /#####???????????????????????????????????????????? | | #???????????????????????????????????????????? | | #???????????????????????????????????????????? | | #???????????????????????????????????????????? | | #???????????????????????????????????????????? | | #???????????????????????????????????????????? | | #???????????????????????????????????????????? | | #?????#########?????????????????????????????? | | #?????#"""G"""#?????????????????????? #????? | | /###########""" """################+### #????? | | p ggg ???? | | ???? | | """"" ??? | | ""T"" ??? | | hsoks @ ??? | | ########### """"""" """"""" #???????????? | | ??????????# """"""" """"""" #???????????? | | ??????????# """"""" """"""" #???????????? | | ??????????# """"""" """"""" +???????????? | | ??????????# #???????????? | | ??????????# ??#???????????? | | ??????????# = ???????????????? | | ??????????####+################# ????????????????? | | ?????????????????????????????????????????????????? | | ?????????????????????????????????????????????????? | | ?????????????????????????????????????????????????? | | ?????????????????????????????????????????????????? | | ?????????????????????????????????????????????????? | | ?????????????????????????????????????????????????? | | ?????????????????????????????????????????????????? | | ?????????????????????????????????????????????????? | | ?????????????????????????????????????????????????? | | ?????????????????????????????????????????????????? | | ?????????????????????????????????????????????????? | | ?????????????????????????????????????????????????? | | ?????????????????????????????????????????????????? | | ?????????????????????????????????????????????????? | | ?????????????????????????????????????????????????? | | ?????????????????????????????????????????????????? | +----------------------------------------------------+ Best States ------------- Heat Dissipation 34 Energy Generation 14 Energy Capacity 275 Matter Stores 300 Matter Capacity 300 Sight Range 22 Robot Scan Range 16 Terrain Scan Range 20 Terrain Scan Density 110 ECM Strength 2 Additional Mass Support 6 Evasion (%) 62 Offensive Hacking 10 Item Schematics ----------------- VTOL Module | -9/Materials | Scanalyzed Lgt. Ion Engine | -9/Materials | Scanalyzed Robot Schematics ------------------ None Fabricated ------------ Nothing Alien Tech Used ----------------- None Achievements -------------- None Challenges ------------ None Game ------ Seed GhostThunderTearclaws Manual? 0 Play Time 00:25:53 Cumulative 19.7 hours Start 2019.10.25 @ 23:55:18 End 2019.10.26 @ 00:19:52 Sessions 1 Manual Loads 0 Difficulty Rogue Special Mode None Game No. 40 Rogue 40 Adventurer 0 Explorer 0 Win Type - Total 0 Types 0/0/0/0/0/0/0 Lore% 15 Gallery% 36 Achievement% 23 Wizard Run 0 Options --------- ASCII 0 Keyboard 0 Movement Numpad Keybinds 0 Fullscreen 0 Font 14/Terminus Map View 76x50 Tactical HUD 1 Map Filters NONE Filters NONE Steam 1 RUN: 29f6c140-03ca-4b8e-b536-0d7e31b1bf39